bitfinex-derivatives/quotes_BTCF0:USTF0_20210708
["timestamp","ask_amount","ask_price","bid_price","bid_amount"]
[1625783494211,3.61731921,32604.0,32603.0,3.61585501]
[1625783494212,2.35132982,32604.0,32603.0,3.61585501]
[1625783494509,1.26617022,32604.0,32603.0,3.61585501]
[1625783494659,2.35130125,32604.0,32603.0,3.85643045]
[1625783495260,1.26617022,32604.0,32603.0,5.29609007]
[1625783496237,1.11657022,32604.0,32603.0,5.29609007]
[1625783496537,0.54267021,32604.0,32603.0,5.29609007]
[1625783498189,0.54276449,32604.0,32603.0,5.29609007]
[1625783498489,0.54252714,32605.0,32603.0,5.29609007]
[1625783498791,0.54252714,32605.0,32604.0,4.32950801]
[1625783499767,0.18090262,32605.0,32604.0,4.32950801]
[1625783499917,0.54248669,32606.0,32604.0,4.32950801]
[1625783500142,0.54248669,32606.0,32605.0,2.87766126]
[1625783500517,0.54248669,32606.0,32605.0,2.89036833]
[1625783500669,0.54248669,32606.0,32605.0,3.13094377]
[1625783501645,0.18088842,32606.0,32605.0,3.13094377]
[1625783501948,1.0845553,32607.0,32605.0,3.13094377]
[1625783502094,1.0845553,32607.0,32606.0,1.25793995]
[1625783502246,0.54225147,32607.0,32606.0,2.88799782]
[1625783502396,0.08580536,32608.0,32606.0,4.32504725]
[1625783502698,0.54176892,32611.0,32607.0,4.54765968]
[1625783502845,1.08335731,32613.0,32607.0,4.54765968]
[1625783502846,0.54176849,32612.0,32610.0,1.6149021]
[1625783502996,0.54176849,32612.0,32610.0,1.8388621]
[1625783503147,0.54176849,32612.0,32611.0,1.61459089]
[1625783503295,0.54176849,32612.0,32611.0,1.61822091]
[1625783503452,0.54170994,32613.0,32611.0,1.61822091]
[1625783503597,0.54170994,32613.0,32612.0,0.53799809]
[1625783504047,0.54170994,32613.0,32612.0,0.54162809]
[1625783504347,0.54170994,32613.0,32612.0,1.61751453]
[1625783504648,0.54138208,32614.0,32612.0,1.02277897]
[1625783504800,0.54138753,32613.0,32612.0,1.02277897]
[1625783505248,1.62404329,32613.0,32612.0,0.48478088]
[1625783505923,0.54138753,32613.0,32612.0,0.48478088]
[1625783506298,0.54138753,32613.0,32612.0,1.02259998]
[1625783506448,0.54138753,32613.0,32612.0,1.01896998]
[1625783506598,0.54138753,32613.0,32612.0,0.48115088]
[1625783506748,0.54138753,32613.0,32612.0,1.02223768]
[1625783506897,0.24057544,32621.0,32612.0,1.02223768]
[1625783507050,1.86379123,32621.0,32612.0,0.4847809]
[1625783507198,1.86379123,32621.0,32613.0,0.00363002]
[1625783507349,1.26277202,32616.0,32613.0,0.00363002]
[1625783507648,0.54128915,32614.0,32613.0,0.00363002]
[1625783508400,0.54128915,32614.0,32613.0,0.54114553]
[1625783508551,0.54104945,32615.0,32613.0,0.00363002]
[1625783508699,0.54104945,32615.0,32614.0,0.24057544]
[1625783509150,0.54104945,32615.0,32614.0,0.24420524]
[1625783509603,0.54115519,32616.0,32614.0,0.78130587]
[1625783510200,0.54115519,32616.0,32615.0,0.00362965]
[1625783510652,0.54090968,32617.0,32615.0,0.00362965]
[1625783510802,0.54090968,32617.0,32616.0,0.24057544]
[1625783510952,1.0821253,32618.0,32616.0,0.24057544]
[1625783511102,0.54091108,32617.0,32616.0,0.24057544]
[1625783511252,0.54091108,32617.0,32616.0,0.24420516]
[1625783511403,1.6226806,32617.0,32616.0,0.24420516]
[1625783511554,0.54091108,32617.0,32616.0,0.24420516]
[1625783512305,1.62270261,32617.0,32616.0,0.24420516]
[1625783512455,2.88444416,32617.0,32616.0,0.24420516]
[1625783512604,2.88444416,32617.0,32616.0,0.24057544]
[1625783513130,4.32651186,32617.0,32616.0,0.24057544]
[1625783514857,5.94890495,32617.0,32616.0,0.24057544]
[1625783515982,4.32651186,32617.0,32616.0,0.24057544]
[1625783517183,4.32651186,32617.0,32616.0,0.24420572]
[1625783517410,2.88444416,32617.0,32616.0,0.24420572]
[1625783518233,2.88444416,32617.0,32616.0,4.76860572]
[1625783521087,4.32599369,32617.0,32616.0,4.76860572]
[1625783523115,2.88444416,32617.0,32616.0,4.76860572]
[1625783525891,2.34353308,32617.0,32616.0,4.76860572]
[1625783526040,2.88430414,32617.0,32616.0,4.76860572]
[1625783526940,2.88430414,32617.0,32616.0,4.77768093]
[1625783528441,1.62256259,32617.0,32616.0,4.77768093]
[1625783529569,1.61636259,32617.0,32616.0,4.77768093]
[1625783530769,2.87814453,32617.0,32616.0,4.77768093]
[1625783531221,1.61636259,32617.0,32616.0,4.77768093]
[1625783531674,0.54077106,32617.0,32616.0,4.77768093]
[1625783533702,0.54077106,32617.0,32616.0,4.87048093]
[1625783534453,0.54077106,32617.0,32616.0,4.77768093]
[1625783535429,1.80264983,32617.0,32616.0,4.77768093]
[1625783536184,0.54077106,32617.0,32616.0,4.77768093]
[1625783536636,1.80265471,32617.0,32616.0,4.77768093]
[1625783538662,0.54077106,32617.0,32616.0,4.77768093]
[1625783540538,1.80327307,32617.0,32616.0,4.77768093]
[1625783542272,1.80327307,32617.0,32616.0,4.86888093]
[1625783542572,1.80327307,32617.0,32616.0,4.77768093]
[1625783546252,0.54077106,32617.0,32616.0,4.86636406]
[1625783546402,0.49107106,32617.0,32616.0,4.86636406]
[1625783546553,0.49107106,32617.0,32616.0,0.78557115]
[1625783546554,0.44707106,32617.0,32616.0,0.78557115]
[1625783546702,1.71184424,32617.0,32616.0,0.34203709]
[1625783547080,6.05784424,32617.0,32616.0,0.33296188]
[1625783548507,6.05784424,32617.0,32616.0,0.24420572]
[1625783552787,7.50658751,32617.0,32616.0,0.24420572]
[1625783554438,7.50658751,32617.0,32616.0,1.48943698]
[1625783555565,7.50658751,32617.0,32616.0,0.24420572]
[1625783556013,7.50658751,32617.0,32616.0,0.33510572]
[1625783556169,7.50658751,32617.0,32616.0,0.24420572]
[1625783556390,8.23116123,32617.0,32616.0,0.95603866]
[1625783556616,8.23116123,32617.0,32616.0,2.20211967]
[1625783556989,8.23116123,32617.0,32616.0,2.21119467]
[1625783559390,8.54949123,32617.0,32616.0,2.21119467]
[1625783559692,9.63663034,32617.0,32616.0,3.27885118]
[1625783559841,9.63663034,32617.0,32616.0,2.03277017]
[1625783561269,9.63663034,32617.0,32616.0,3.27903114]
[1625783561721,9.63663034,32617.0,32616.0,2.03277017]
[1625783565251,9.63663034,32617.0,32616.0,3.27862116]
[1625783570583,8.18788707,32617.0,32616.0,3.27862116]
[1625783570732,7.86955707,32617.0,32616.0,3.27862116]
[1625783571858,7.86955707,32617.0,32616.0,2.2331852]
[1625783571859,8.17512707,32617.0,32616.0,2.2331852]
[1625783572009,11.25574197,32617.0,32615.0,0.06868133]
[1625783572157,11.75574197,32617.0,32612.0,0.74128464]
[1625783572310,5.61863196,32616.0,32611.0,0.08925796]
[1625783572613,3.44311332,32612.0,32606.0,0.08936282]
[1625783572910,3.44363455,32607.0,32602.0,1.00866404]
[1625783573060,0.96230176,32603.0,32602.0,1.00866404]
[1625783573210,9.10762667,32603.0,32593.0,0.0090811]
[1625783573360,1.63151082,32595.0,32593.0,0.0090811]
[1625783573511,1.90818082,32595.0,32589.0,0.00363277]
[1625783573662,1.63181491,32594.0,32589.0,0.00363277]
[1625783573809,4.5991,32589.0,32587.0,0.00363312]
[1625783574109,4.5991,32589.0,32582.0,0.0090828]
[1625783574410,1.62750624,32588.0,32581.0,0.24965875]
[1625783574558,1.94611624,32588.0,32583.0,0.00363363]
[1625783574710,1.62752596,32586.0,32583.0,0.00363363]
[1625783574859,1.62752596,32586.0,32575.0,0.00363367]
[1625783575163,0.48115088,32576.0,32572.0,0.24420914]
[1625783575309,4.1162,32573.0,32572.0,0.24420914]
[1625783575460,4.1162,32573.0,32572.0,0.24057544]
[1625783575610,4.1162,32573.0,32572.0,0.24420919]
[1625783575759,4.1162,32573.0,32572.0,0.25329356]
[1625783575910,4.1162,32573.0,32572.0,0.24420919]
[1625783577561,4.1162,32573.0,32572.0,0.24057544]
[1625783577717,4.1162,32573.0,32569.0,0.24057544]
[1625783578313,4.1162,32573.0,32558.0,1.90615928]
[1625783578465,4.1162,32573.0,32558.0,0.2929]
[1625783578769,4.1162,32573.0,32555.0,1.6144915]
[1625783578916,4.1162,32573.0,32553.0,1.6149523]
[1625783579214,0.48115088,32564.0,32560.0,0.24057544]
[1625783579365,0.69733088,32564.0,32560.0,0.24057544]
[1625783579665,5.2558,32561.0,32560.0,0.24057544]
[1625783580267,5.2558,32561.0,32557.0,0.24057544]
[1625783581164,0.24057544,32558.0,32554.0,0.24057544]
[1625783583198,0.24057544,32555.0,32554.0,0.24057544]
[1625783583347,0.47281544,32555.0,32554.0,0.24057544]
[1625783587779,0.24057544,32555.0,32554.0,0.24057544]
[1625783588530,0.24057544,32555.0,32554.0,0.51672544]
[1625783589280,0.24057544,32558.0,32554.0,0.51672544]
[1625783591236,0.24057544,32558.0,32557.0,0.24057544]
[1625783591386,0.24057544,32564.0,32557.0,0.24057544]
[1625783593265,0.24057544,32564.0,32563.0,0.24057544]
[1625783593413,0.24057544,32564.0,32563.0,0.58462544]
[1625783594012,5.148,32566.0,32563.0,0.58462544]
[1625783595063,5.148,32566.0,32563.0,0.24057544]
[1625783600394,5.148,32566.0,32563.0,0.54999544]
[1625783601294,5.148,32566.0,32563.0,0.79057088]
[1625783601444,5.148,32566.0,32564.0,0.00363494]
[1625783607372,5.148,32566.0,32565.0,0.24057544]
[1625783607973,5.148,32566.0,32565.0,0.24421006]
[1625783609401,5.38857544,32566.0,32565.0,0.24421006]
[1625783613602,5.38857544,32566.0,32540.0,1.06637536]
[1625783613756,0.5,32565.0,32540.0,0.02403214]
[1625783614053,0.5,32565.0,32532.0,0.2929]
[1625783614054,0.5,32565.0,32546.0,0.00363643]
[1625783614204,1.0,32563.0,32546.0,0.00363643]
[1625783614355,1.0,32563.0,32547.0,0.0036369]
[1625783614356,0.2166,32555.0,32547.0,0.0036369]
[1625783614505,0.2465,32553.0,32533.0,0.9681]
[1625783614656,4.9457,32545.0,32533.0,0.9681]
[1625783614805,5.27264,32545.0,32544.0,0.00363746]
[1625783614955,5.27264,32545.0,32534.0,0.00909364]
[1625783615257,5.77264,32545.0,32521.0,0.00909444]
[1625783615410,0.96230176,32535.0,32521.0,0.00909444]
[1625783615633,1.27499176,32535.0,32521.0,0.00909444]
[1625783615784,5.1522,32522.0,32521.0,0.00363909]
[1625783615933,5.39793,32522.0,32520.0,0.91]
[1625783616231,5.39793,32522.0,32521.0,0.00363901]
[1625783617432,6.11965632,32522.0,32521.0,0.00363901]
[1625783619383,6.11965632,32522.0,32520.0,0.91]
[1625783619683,6.11965632,32522.0,32521.0,0.00363945]
[1625783620283,6.11965632,32522.0,32520.0,0.91]
[1625783621484,6.36023176,32522.0,32520.0,0.91]
[1625783628182,5.39277544,32522.0,32520.0,1.20386]
[1625783628320,5.1522,32522.0,32520.0,1.20386]
[1625783628476,6.2707,32533.0,32520.0,1.20386]
[1625783629231,6.2707,32533.0,32520.0,0.91]
[1625783629536,0.72172632,32521.0,32520.0,0.91]
[1625783629683,1.00572632,32521.0,32520.0,0.91]
[1625783632905,1.22232632,32521.0,32520.0,0.91]
[1625783635757,1.22232632,32521.0,32520.0,0.8748]
[1625783635909,1.9215148,32521.0,32520.0,0.51055354]
[1625783636207,1.9215148,32521.0,32507.0,0.9883]
[1625783636358,0.34979469,32519.0,32507.0,0.9883]
[1625783636808,1.22386082,32520.0,32507.0,0.9883]
[1625783636809,0.34939035,32520.0,32507.0,0.9883]
[1625783637110,0.56599035,32520.0,32507.0,0.9883]
[1625783637260,5.2991,32511.0,32507.0,0.9883]
[1625783637408,5.64839,32511.0,32507.0,0.9883]
[1625783637560,0.72172632,32508.0,32507.0,0.9883]
[1625783640413,0.2166,32520.0,32507.0,0.9883]
[1625783640563,0.2166,32520.0,32507.0,1.29558]
[1625783641162,0.2166,32520.0,32508.0,0.00364107]
[1625783641614,0.24057544,32518.0,32514.0,0.24057544]
[1625783641764,0.24057544,32518.0,32514.0,0.48281544]
[1625783643416,0.24057544,32518.0,32515.0,0.00364049]
[1625783643566,0.24057544,32518.0,32517.0,0.24057544]
[1625783643868,0.24057544,32528.0,32517.0,0.24421581]
[1625783644167,0.24057544,32528.0,32518.0,0.00364031]
[1625783644470,0.35088192,32541.0,32518.0,0.00364031]
[1625783644621,0.35105683,32543.0,32518.0,0.00364031]
[1625783644775,5.64763823,32545.0,32518.0,0.00364031]
[1625783644776,5.29690411,32545.0,32518.0,1.00364031]
[1625783645068,5.29690411,32545.0,32518.0,0.00364031]
[1625783645069,0.35085847,32543.0,32518.0,0.00364031]
[1625783645219,0.35084674,32542.0,32519.0,0.00363987]
[1625783645521,0.24057544,32532.0,32531.0,0.24057544]
[1625783645672,0.24057544,32532.0,32531.0,0.48713544]
[1625783645970,0.24057544,32532.0,32531.0,0.49077515]
[1625783648528,0.24057544,32532.0,32531.0,0.24421515]
[1625783650556,0.24057544,32538.0,32531.0,0.24421515]
[1625783650711,0.24057544,32538.0,32531.0,0.53973515]
[1625783651078,0.24057544,32538.0,32530.0,0.06060954]
[1625783651229,0.24057544,32538.0,32531.0,0.34278]
[1625783652278,0.24057544,32538.0,32530.0,0.06060954]
[1625783652428,0.50292544,32538.0,32530.0,0.06060954]
[1625783652582,0.50292544,32538.0,32528.0,0.24057544]
[1625783652728,0.50292544,32538.0,32531.0,0.00363954]
[1625783652877,0.50292544,32538.0,32529.0,0.00363968]
[1625783653177,0.50292544,32538.0,32524.0,0.00364031]
[1625783653635,0.72172632,32525.0,32524.0,0.00364031]
[1625783653781,0.95605632,32525.0,32517.0,0.9095]
[1625783654229,0.95605632,32525.0,32518.0,0.00364024]
[1625783655582,0.72172632,32525.0,32521.0,0.24057544]
[1625783655882,0.72172632,32525.0,32522.0,0.00364026]
[1625783656634,0.44963363,32541.0,32522.0,0.00364026]
[1625783656782,0.39263363,32541.0,32522.0,0.00364026]
[1625783656934,0.52834977,32543.0,32526.0,4.7861]
[1625783657084,0.17617526,32543.0,32526.0,5.12473]
[1625783657384,0.52834978,32544.0,32526.0,5.12473]
[1625783657533,0.52834978,32544.0,32527.0,0.00363987]
[1625783657686,0.24057544,32536.0,32535.0,0.24057544]
[1625783657835,0.24057544,32536.0,32535.0,0.52531544]
[1625783658433,0.24057544,32536.0,32535.0,0.28474]
[1625783659035,0.24057544,32536.0,32525.0,0.24057544]
[1625783659336,0.24057544,32536.0,32526.0,0.00363995]
[1625783659636,0.24057544,32527.0,32526.0,0.00363995]
[1625783660613,0.24057544,32536.0,32526.0,0.00363995]
[1625783660764,0.24057544,32536.0,32526.0,0.25062995]
[1625783661213,0.24057544,32536.0,32527.0,0.00363968]
[1625783661664,0.24057544,32536.0,32535.0,0.24057544]
[1625783661815,0.24057544,32536.0,32535.0,0.56513544]
[1625783661966,0.24057544,32536.0,32535.0,0.56877488]
[1625783664891,0.24057544,32536.0,32535.0,0.24421488]
[1625783671275,1.12882881,32536.0,32535.0,0.24421488]
[1625783671725,0.77368626,32536.0,32535.0,0.24421488]
[1625783672179,1.12845367,32536.0,32535.0,0.24421488]
[1625783672779,1.48314068,32536.0,32535.0,0.24421488]
[1625783672928,3.79496295,32536.0,32535.0,0.24421488]
[1625783677580,4.06897295,32536.0,32535.0,0.24421488]
[1625783678334,5.49221001,32536.0,32535.0,0.24421488]
[1625783678483,4.06897295,32536.0,32535.0,0.24421488]
[1625783679461,3.79496295,32536.0,32535.0,0.24421488]
[1625783679912,2.55014925,32536.0,32535.0,0.24421488]
[1625783680060,2.55014925,32536.0,32535.0,0.50599488]
[1625783681185,1.48314068,32536.0,32535.0,0.24421488]
[1625783681337,2.55071156,32536.0,32535.0,0.24421488]
[1625783682539,0.77311681,32536.0,32535.0,0.24421488]
[1625783682838,1.12904017,32536.0,32535.0,0.24421488]
[1625783683139,0.77311681,32536.0,32535.0,0.24421488]
[1625783683288,1.48469173,32536.0,32535.0,0.24421488]
[1625783685692,0.77311681,32536.0,32535.0,0.24421488]
[1625783685994,0.77460626,32536.0,32535.0,0.24421488]
[1625783686144,0.41864501,32536.0,32535.0,0.24421488]
[1625783686292,0.17806957,32536.0,32535.0,0.24421488]
[1625783686444,0.53444033,32538.0,32535.0,0.78598454]
[1625783686592,0.17820612,32538.0,32535.0,0.78598454]
[1625783686817,0.53447867,32539.0,32536.0,0.5417361]
[1625783686967,0.53447867,32539.0,32536.0,0.54537515]
[1625783687118,0.17823243,32539.0,32536.0,0.54537515]
[1625783687268,0.17823243,32539.0,32537.0,0.00363905]
[1625783687418,0.17823243,32539.0,32537.0,0.32148905]
[1625783687568,0.71243573,32541.0,32537.0,0.86311588]
[1625783687569,0.53472919,32541.0,32537.0,0.86311588]
[1625783687717,0.53472919,32541.0,32540.0,0.48115088]
[1625783687868,0.53491193,32542.0,32540.0,0.48115088]
[1625783688017,0.53491193,32542.0,32540.0,0.48478942]
[1625783688169,0.1784033,32543.0,32540.0,1.02637549]
[1625783688326,0.1784033,32543.0,32541.0,0.00363851]
[1625783688633,0.53500078,32543.0,32541.0,0.00363851]
[1625783688996,0.1784033,32543.0,32541.0,0.00363851]
[1625783689296,0.53482859,32543.0,32541.0,0.00363851]
[1625783689897,1.24630565,32542.0,32541.0,0.00363851]
[1625783690046,1.53717565,32542.0,32541.0,0.00363851]
[1625783690347,2.60338908,32542.0,32541.0,0.00363851]
[1625783690647,0.82502642,32542.0,32541.0,0.00363851]
[1625783690947,1.53439118,32542.0,32541.0,0.00363851]
[1625783691097,2.59796411,32542.0,32541.0,0.00363851]
[1625783692525,3.8357357,32542.0,32541.0,0.00363851]
[1625783694851,5.2515413,32542.0,32541.0,0.00363851]
[1625783696129,3.8357357,32542.0,32541.0,0.00363851]
[1625783696580,2.59796411,32542.0,32541.0,0.00363851]
[1625783697029,5.25639955,32542.0,32541.0,0.00363851]
[1625783699205,6.85280592,32542.0,32541.0,0.00363851]
[1625783699356,6.85280592,32542.0,32538.0,0.00363941]
[1625783699656,0.29087,32542.0,32541.0,0.00363941]
[1625783699805,0.24057544,32542.0,32541.0,0.00363941]
[1625783699958,6.79832409,32542.0,32539.0,0.00363943]
[1625783700106,6.55713676,32540.0,32532.0,0.55240033]
[1625783700406,2.30442727,32533.0,32532.0,0.54330163]
[1625783700556,2.30442727,32533.0,32532.0,0.90551468]
[1625783700705,2.30442727,32533.0,32532.0,0.90915422]
[1625783700855,2.30442727,32533.0,32532.0,0.54694315]
[1625783701542,2.30442727,32533.0,32532.0,0.18474312]
[1625783701834,2.30442727,32533.0,32532.0,2.8411256]
[1625783701982,0.53297844,32533.0,32532.0,4.10982757]
[1625783702206,0.53310784,32534.0,32532.0,5.55971908]
[1625783702356,0.53310784,32534.0,32533.0,3.9725]
[1625783702507,0.17776181,32534.0,32533.0,9.05978503]
[1625783702657,0.53337868,32535.0,32533.0,9.05978503]
[1625783702956,0.53337868,32535.0,32534.0,3.62462844]
[1625783703106,0.53337868,32535.0,32534.0,3.63736563]
[1625783703258,0.53326745,32535.0,32534.0,3.63736563]
[1625783703409,1.24453348,32535.0,32534.0,3.63736563]
[1625783704236,0.53326745,32535.0,32534.0,5.08786528]
[1625783704383,0.5339287,32535.0,32534.0,5.08786528]
[1625783704686,0.17803552,32535.0,32534.0,5.08786528]
[1625783705436,0.53402372,32536.0,32534.0,5.08786528]
[1625783705587,0.53402372,32536.0,32535.0,5.07656174]
[1625783705735,0.53402372,32536.0,32535.0,5.08929833]
[1625783705886,0.53402372,32536.0,32535.0,5.32987377]
[1625783707388,0.53427371,32538.0,32535.0,5.32987377]
[1625783707705,0.71228008,32541.0,32537.0,5.07564313]
[1625783707840,0.59325662,32543.0,32540.0,1.9311962]
[1625783707989,1.42566143,32549.0,32540.0,0.22806]
[1625783708139,0.24057544,32556.0,32540.0,0.22806]
[1625783708289,0.24057544,32556.0,32541.0,0.01273222]
[1625783708588,0.24057544,32556.0,32542.0,1.0]
[1625783708738,0.24057544,32556.0,32542.0,1.0036374]
[1625783709038,0.24057544,32556.0,32543.0,0.00363717]
[1625783709638,0.24057544,32556.0,32543.0,1.0]
[1625783709789,0.24057544,32556.0,32555.0,0.13141467]
[1625783709939,0.24057544,32556.0,32555.0,0.34930467]
[1625783710089,0.24057544,32556.0,32555.0,0.35294162]
[1625783711004,0.24057544,32556.0,32555.0,0.13505162]
[1625783715126,0.24057544,32556.0,32555.0,0.13505247]
[1625783715572,0.24057544,32556.0,32555.0,0.13869029]
[1625783716780,0.24057544,32556.0,32555.0,0.37849029]
[1625783720978,0.24057544,32556.0,32555.0,0.13869029]
[1625783721128,0.49924544,32556.0,32555.0,0.13869029]
[1625783722029,0.49924544,32556.0,32555.0,0.00727562]
[1625783722180,0.49924544,32556.0,32555.0,0.0036378]
[1625783722328,2.09192868,32556.0,32555.0,0.0036378]
[1625783723528,3.50645178,32556.0,32555.0,0.0036378]
[1625783723829,3.50645178,32556.0,32546.0,0.24057544]
[1625783723979,0.48115088,32547.0,32546.0,0.24057544]
[1625783724130,0.76155088,32547.0,32546.0,0.24057544]
[1625783724430,0.76155088,32547.0,32546.0,0.24421386]
[1625783724880,0.52097544,32547.0,32546.0,0.24421386]
[1625783725030,0.24057544,32547.0,32546.0,0.24421386]
[1625783725793,0.57683544,32547.0,32546.0,0.24421386]
[1625783725943,0.81741088,32547.0,32546.0,0.24421386]
[1625783727590,0.48115088,32547.0,32546.0,0.24421386]
[1625783729158,1.48083938,32556.0,32546.0,0.53987386]
[1625783729309,0.24057544,32556.0,32546.0,0.53987386]
[1625783729609,0.24057544,32556.0,32547.0,0.00363742]
[1625783729910,0.24057544,32556.0,32555.0,0.48115088]
[1625783730059,0.24057544,32556.0,32555.0,0.78281088]
[1625783730362,0.24057544,32556.0,32555.0,0.78644838]
[1625783730661,1.48114194,32556.0,32555.0,0.78644838]
[1625783731262,2.8988898,32556.0,32555.0,0.78644838]
[1625783731562,1.48114194,32556.0,32555.0,0.78644838]
[1625783734041,1.48114194,32556.0,32555.0,0.48478838]
[1625783734187,2.89894699,32556.0,32555.0,0.48478838]
[1625783734490,1.48114194,32556.0,32555.0,0.48478838]
[1625783734715,0.24057544,32556.0,32555.0,0.48478838]
[1625783734863,1.48118611,32556.0,32555.0,0.48478838]
[1625783735464,2.89922622,32556.0,32555.0,0.48478838]
[1625783736368,1.48118611,32556.0,32555.0,0.48478838]
[1625783736515,1.48118611,32556.0,32555.0,0.77172838]
[1625783736817,2.89946577,32556.0,32555.0,0.77172838]
[1625783738091,3.96334246,32556.0,32555.0,0.77172838]
[1625783738391,3.72276702,32556.0,32555.0,0.77172838]
[1625783738694,2.30448736,32556.0,32555.0,0.77172838]
[1625783738994,1.06482053,32557.0,32555.0,0.77172838]
[1625783739294,1.06532085,32559.0,32556.0,0.00363721]
[1625783739472,1.24284473,32561.0,32556.0,0.00363721]
[1625783739473,1.06571855,32560.0,32556.0,0.00363721]
[1625783739770,1.06614079,32561.0,32556.0,0.00363721]
[1625783740049,1.06673464,32563.0,32560.0,0.48115088]
[1625783740352,1.06681392,32564.0,32561.0,0.0036365]
[1625783740496,1.06690846,32565.0,32561.0,0.0036365]
[1625783740643,1.06690846,32565.0,32563.0,5.0575]
[1625783740804,1.06690846,32565.0,32563.0,5.27274]
[1625783741097,1.24458661,32566.0,32564.0,0.01272712]
[1625783741098,1.06638978,32566.0,32564.0,0.01272712]
[1625783741999,1.06638978,32566.0,32565.0,0.48115088]
[1625783742449,1.06638978,32566.0,32565.0,0.48478716]
[1625783742977,1.06686923,32568.0,32565.0,0.48115088]
[1625783743128,1.06743812,32570.0,32565.0,0.48115088]
[1625783743275,1.06743812,32570.0,32566.0,0.00363578]
[1625783743426,1.06783965,32571.0,32566.0,0.00363578]
[1625783743726,1.06766111,32570.0,32566.0,0.00363578]
[1625783743877,1.06697794,32568.0,32566.0,0.00363578]
[1625783744026,1.06697794,32568.0,32567.0,0.24057544]
[1625783744178,1.24477796,32569.0,32567.0,0.24057544]
[1625783744326,1.24477796,32569.0,32567.0,0.24421149]
[1625783744476,2.31161032,32568.0,32567.0,0.24421149]
[1625783744626,2.31161032,32568.0,32567.0,0.24057544]
[1625783744926,2.31161032,32568.0,32567.0,0.24421157]
[1625783747107,2.31161032,32568.0,32567.0,0.00363613]
[1625783747260,5.32889062,32568.0,32567.0,0.00363613]
[1625783747558,5.32889062,32568.0,32566.0,0.00363659]
[1625783747859,3.7265808,32567.0,32566.0,0.00363659]
[1625783748013,3.9686408,32567.0,32566.0,0.24421203]
[1625783748160,3.9686408,32567.0,32566.0,0.24057544]
[1625783748611,3.9686408,32567.0,32566.0,0.24421228]
[1625783749212,3.9686408,32567.0,32566.0,0.24057544]
[1625783750569,3.9686408,32567.0,32566.0,0.24421236]
[1625783750715,3.9686408,32567.0,32566.0,0.24057544]
[1625783751467,3.7265808,32567.0,32566.0,0.24057544]
[1625783751994,5.32340058,32567.0,32566.0,0.24057544]
[1625783753197,3.7265808,32567.0,32566.0,0.24057544]
[1625783753344,3.7265808,32567.0,32566.0,0.52364544]
[1625783753496,3.7265808,32567.0,32566.0,0.52728226]
[1625783754695,2.30695632,32567.0,32566.0,0.52728226]
[1625783754848,1.06476272,32567.0,32566.0,0.52728226]
[1625783756498,2.30888779,32567.0,32566.0,0.52728226]
[1625783756797,2.30888779,32567.0,32566.0,0.24421226]
[1625783756948,3.7300877,32567.0,32566.0,0.24421226]
[1625783757400,2.30888779,32567.0,32566.0,0.24421226]
[1625783757852,3.7306843,32567.0,32566.0,0.24421226]
[1625783759126,2.66592158,32567.0,32566.0,0.24421226]
[1625783759430,3.73270576,32567.0,32566.0,0.24421226]
[1625783763334,5.33912834,32567.0,32566.0,0.24421226]
[1625783767762,6.05556095,32567.0,32566.0,0.24421226]
[1625783768213,6.53671183,32567.0,32566.0,0.24421226]
[1625783768364,8.32618776,32567.0,32566.0,0.24421226]
[1625783768515,8.32618776,32567.0,32566.0,0.00363682]
[1625783768668,8.32618776,32567.0,32561.0,0.24057544]
[1625783768817,8.54062533,32567.0,32561.0,0.24057544]
[1625783768966,7.86338186,32562.0,32561.0,0.24057544]
[1625783769118,8.18429186,32562.0,32561.0,0.24057544]
[1625783769417,8.18429186,32562.0,32561.0,0.24421316]
[1625783769869,8.18429186,32562.0,32561.0,0.24057544]
[1625783770169,8.4248673,32562.0,32561.0,0.24057544]
[1625783770318,8.4248673,32562.0,32553.0,0.24057544]
[1625783770623,4.46600189,32554.0,32553.0,0.24057544]
[1625783770770,4.70120189,32554.0,32553.0,0.24057544]
[1625783770919,4.70120189,32554.0,32553.0,0.24421319]
[1625783772200,4.94177733,32554.0,32553.0,0.24421319]
[1625783772799,6.54777309,32554.0,32553.0,0.24421319]
[1625783774225,6.78834853,32554.0,32553.0,0.24421319]
[1625783774826,5.18235277,32554.0,32553.0,0.24421319]
[1625783775127,4.94177733,32554.0,32553.0,0.24421319]
[1625783777077,4.70120189,32554.0,32553.0,0.24421319]
[1625783777229,4.46600189,32554.0,32553.0,0.24421319]
[1625783777681,3.0369313,32554.0,32553.0,0.24421319]
[1625783777828,0.71561661,32555.0,32553.0,2.05283731]
[1625783778129,0.08965055,32555.0,32554.0,2.06188055]
[1625783778279,0.08965055,32555.0,32554.0,3.32780757]
[1625783778579,1.07383828,32558.0,32554.0,3.32780757]
[1625783778580,0.71630134,32558.0,32554.0,3.32780757]
[1625783778880,0.71664217,32560.0,32557.0,1.80825936]
[1625783779029,0.71664217,32560.0,32559.0,0.72328333]
[1625783779181,0.71664217,32560.0,32559.0,1.00498333]
[1625783779329,0.71671561,32561.0,32559.0,1.00498333]
[1625783779479,0.71671561,32561.0,32559.0,1.01771041]
[1625783779635,0.71671561,32561.0,32560.0,0.72325878]
[1625783779779,0.71671561,32561.0,32560.0,0.72689503]
[1625783780154,0.71693697,32562.0,32560.0,1.21713654]
[1625783780529,0.71693697,32562.0,32561.0,0.00363623]
[1625783781280,1.79183506,32562.0,32561.0,0.00363623]
[1625783781734,0.71693697,32562.0,32561.0,0.72677503]
[1625783781883,0.49211677,32563.0,32561.0,0.72677503]
[1625783782032,1.25495564,32567.0,32561.0,0.72677503]
[1625783782183,1.25495564,32567.0,32566.0,0.48115088]
[1625783782333,1.25495564,32567.0,32566.0,0.73733088]
[1625783782633,1.25495564,32567.0,32566.0,0.74096686]
[1625783782788,1.25577535,32569.0,32566.0,0.74096686]
[1625783782935,1.25593948,32568.0,32566.0,0.74096686]
[1625783783235,1.25608683,32569.0,32567.0,0.00363573]
[1625783783988,1.25605294,32570.0,32567.0,0.00363573]
[1625783784137,1.25640187,32571.0,32566.0,0.73733088]
[1625783784288,1.25640187,32571.0,32569.0,0.48115088]
[1625783784737,1.25640187,32571.0,32570.0,0.00363546]
[1625783785186,1.25673779,32572.0,32570.0,0.00363546]
[1625783785335,1.25673779,32572.0,32571.0,5.506]
[1625783786012,1.25673779,32572.0,32571.0,5.50963539]
[1625783786311,1.25673779,32572.0,32571.0,5.75021083]
[1625783789013,1.25724554,32573.0,32571.0,5.75021083]
[1625783789465,1.25724554,32573.0,32572.0,0.00363534]
[1625783789914,1.25724925,32574.0,32572.0,0.00363534]
[1625783790213,1.25724925,32574.0,32573.0,0.24057544]
[1625783790364,1.25724925,32574.0,32573.0,0.47565544]
[1625783790825,1.25724925,32574.0,32573.0,0.4792907]
[1625783790965,1.25751464,32575.0,32573.0,0.4792907]
[1625783791266,1.25751464,32575.0,32573.0,0.47565544]
[1625783791566,1.25748087,32574.0,32573.0,0.47565544]
[1625783791720,1.25710116,32575.0,32573.0,0.47565544]
[1625783792317,1.25710116,32575.0,32574.0,0.24057544]
[1625783792694,2.69284612,32575.0,32574.0,0.24057544]